bitfinex-derivatives/quotes_SOLF0:USTF0_20260208
["timestamp","ask_amount","ask_price","bid_price","bid_amount"]
[1770567479783,14.83907467,87.479,87.414,10.3038]
[1770567479978,14.83907467,87.477,87.414,10.3038]
[1770567480180,14.83907467,87.475,87.414,10.3038]
[1770567480385,14.83907467,87.473,87.414,10.3038]
[1770567480579,14.83907467,87.471,87.414,10.3038]
[1770567480774,14.84566076,87.469,87.43,10.3019]
[1770567480974,8.63220581,87.468,87.43,10.3019]
[1770567481186,14.84566076,87.469,87.43,10.3019]
[1770567482283,14.84566076,87.469,87.418,10.3033]
[1770567482482,14.84566076,87.467,87.418,10.3033]
[1770567484490,14.84566076,87.467,87.431,10.3018]
[1770567486696,14.84566076,87.467,87.377,34.38]
[1770567487597,14.84566076,87.467,87.42,10.303]
[1770567491197,14.84566076,87.467,87.411,10.3042]
[1770567491395,14.84897279,87.465,87.377,34.38]
[1770567491597,14.84897279,87.463,87.377,34.38]
[1770567491800,14.84897279,87.461,87.377,34.38]
[1770567491995,14.84897279,87.459,87.377,34.38]
[1770567492201,14.84897279,87.457,87.377,34.38]
[1770567492394,14.84897279,87.457,87.358,45.82]
[1770567492798,14.84897279,87.457,87.4,10.3053]
[1770567493995,14.83305153,87.455,87.4,10.3053]
[1770567494196,14.83305153,87.453,87.4,10.3053]
[1770567494401,14.83305153,87.451,87.39,10.3066]
[1770567494707,14.83305153,87.449,87.39,10.3066]
[1770567494897,14.84147522,87.447,87.39,10.3066]
[1770567495097,14.84147522,87.445,87.39,10.3066]
[1770567495297,14.84147522,87.443,87.39,10.3066]
[1770567495494,10.54931484,87.463,87.39,10.3066]
[1770567495495,14.84147522,87.441,87.39,10.3066]
[1770567496605,14.84146527,87.439,87.39,10.3066]
[1770567499610,14.84146527,87.439,87.399,10.3056]
[1770567499803,6.527e-05,87.439,87.358,34.38]
[1770567500006,10.54931484,87.472,87.358,34.38]
[1770567500308,8.63112422,87.471,87.358,34.38]
[1770567500509,8.63112422,87.47,87.358,34.38]
[1770567500710,8.63112422,87.469,87.402,10.3051]
[1770567501005,8.63112422,87.468,87.362,194.7576]
[1770567501207,10.54931484,87.487,87.364,194.7539]
[1770567501208,8.63112422,87.467,87.364,194.7539]
[1770567501407,8.63112422,87.466,87.395,34.38]
[1770567501612,10.54931484,87.488,87.395,34.38]
[1770567501911,7.42868804,87.486,87.395,34.38]
[1770567502111,7.42868804,87.484,87.395,34.38]
[1770567502309,7.42868804,87.481,87.366,34.38]
[1770567502508,7.42868804,87.479,87.387,34.38]
[1770567502706,7.42868804,87.477,87.387,34.38]
[1770567502907,7.41228839,87.475,87.387,34.38]
[1770567503107,7.41228839,87.473,87.387,34.38]
[1770567503309,7.41228839,87.471,87.387,34.38]
[1770567503509,7.41228839,87.471,87.365,20.6192]
[1770567503510,7.41228839,87.469,87.366,34.38]
[1770567503709,7.41228839,87.467,87.407,10.3046]
[1770567503907,10.54931484,87.481,87.407,10.3046]
[1770567503908,7.41228839,87.465,87.407,10.3046]
[1770567504204,7.41228839,87.463,87.407,10.3046]
[1770567504409,7.41228839,87.475,87.418,10.3033]
[1770567504712,7.41228839,87.473,87.418,10.3033]
[1770567505013,7.41228839,87.473,87.351,39.69328901]
[1770567505014,7.40454839,87.471,87.428,10.3021]
[1770567505311,8.6470971,87.47,87.428,10.3021]
[1770567505507,7.40454839,87.471,87.428,10.3021]
[1770567505709,7.40454839,87.469,87.428,10.3021]
[1770567506014,7.40454839,87.467,87.428,10.3021]
[1770567506407,10.2928,87.508,87.428,10.3021]
[1770567506408,7.40454839,87.465,87.428,10.3021]
[1770567507412,8.6567208,87.464,87.428,10.3021]
[1770567507718,7.40454839,87.465,87.428,10.3021]
[1770567507912,8.65673086,87.464,87.428,10.3021]
[1770567508114,7.40454839,87.465,87.374,34.38]
[1770567508412,7.40970516,87.477,87.374,34.38]
[1770567508715,7.40970516,87.475,87.374,34.38]
[1770567508920,7.41174864,87.473,87.374,34.38]
[1770567509108,8.65905266,87.472,87.377,194.7296]
[1770567509420,8.65905266,87.471,87.377,194.7296]
[1770567509725,8.65905266,87.47,87.377,194.7296]
[1770567510017,8.65905266,87.469,87.377,194.7296]
[1770567510216,8.65905266,87.468,87.377,194.7296]
[1770567510422,8.65905266,87.467,87.377,194.7296]
[1770567510608,7.41174864,87.472,87.377,194.7296]
[1770567510806,16.0230258,87.471,87.425,10.3024]
[1770567511014,8.65549268,87.47,87.425,10.3024]
[1770567511207,8.65549268,87.469,87.425,10.3024]
[1770567511407,8.65549268,87.468,87.425,10.3024]
[1770567511612,8.65549268,87.467,87.425,10.3024]
[1770567511812,7.36753312,87.471,87.425,10.3024]
[1770567512013,8.65221223,87.47,87.425,10.3024]
[1770567512215,8.65221223,87.469,87.434,10.3015]
[1770567512519,8.65221223,87.468,87.434,10.3015]
[1770567512721,8.65221223,87.467,87.434,10.3015]
[1770567513018,7.36753312,87.471,87.434,10.3015]
[1770567513620,8.65375585,87.47,87.434,10.3015]
[1770567513821,8.65375585,87.469,87.434,10.3015]
[1770567514124,7.36753312,87.471,87.434,10.3015]
[1770567514424,8.65375081,87.47,87.434,10.3015]
[1770567514620,8.65375081,87.469,87.434,10.3015]
[1770567514920,8.65375081,87.468,87.434,10.3015]
[1770567515116,7.36753312,87.471,87.434,10.3015]
[1770567515421,7.40763108,87.469,87.434,10.3015]
[1770567515621,8.65405294,87.468,87.434,10.3015]
[1770567515823,7.40763108,87.469,87.434,10.3015]
[1770567516024,8.65376966,87.468,87.434,10.3015]
[1770567516322,7.40763108,87.469,87.434,10.3015]
[1770567516520,8.65341674,87.468,87.434,10.3015]
[1770567516721,7.40763108,87.469,87.434,10.3015]
[1770567516922,8.65341752,87.468,87.434,10.3015]
[1770567517219,7.40763108,87.469,87.434,10.3015]
[1770567518416,7.35364806,87.497,87.442,10.3004]
[1770567518623,7.35364806,87.495,87.442,10.3004]
[1770567518922,7.39206999,87.493,87.442,10.3004]
[1770567519221,7.39206999,87.491,87.442,10.3004]
[1770567519424,7.39206999,87.489,87.442,10.3004]
[1770567519622,7.39206999,87.487,87.442,10.3004]
[1770567519921,7.39206999,87.485,87.442,10.3004]
[1770567520129,7.39206999,87.483,87.442,10.3004]
[1770567520716,7.39206999,87.483,87.451,10.2995]
[1770567523119,7.38489512,87.481,87.398,34.38]
[1770567523321,7.38489512,87.479,87.398,34.38]
[1770567523524,7.38489512,87.477,87.398,34.38]
[1770567523725,7.38489512,87.475,87.398,34.38]
[1770567524125,7.38489512,87.475,87.432,10.3016]
[1770567525117,7.38190235,87.473,87.432,10.3016]
[1770567525427,7.38190235,87.471,87.432,10.3016]
[1770567537827,7.28420819,87.469,87.432,10.3016]
[1770567538027,7.28420819,87.467,87.432,10.3016]
[1770567538433,10.54931484,87.488,87.432,10.3016]
[1770567538434,7.28420819,87.465,87.432,10.3016]
[1770567541034,7.28420819,87.465,87.38,34.38]
[1770567541229,7.29823584,87.463,87.373,34.38]
[1770567541430,7.29823584,87.461,87.373,34.38]
[1770567541629,7.29823584,87.459,87.399,10.3055]
[1770567541830,7.29823584,87.457,87.399,10.3055]
[1770567542027,8.65315192,87.456,87.374,34.38]
[1770567542231,10.54931484,87.499,87.388,0.82661332]
[1770567542432,34.7727472,87.572,87.367,228.6]
[1770567542433,8.65643082,87.498,87.411,0.82661332]
[1770567542638,27.89392419,87.565,87.411,0.82661332]
[1770567542639,8.65643082,87.497,87.411,0.82661332]
[1770567542833,10.54931484,87.521,87.452,0.81198065]
[1770567543140,8.65484149,87.52,87.452,0.81198065]
[1770567543328,8.65484149,87.519,87.466,0.81198065]
[1770567543530,8.65484149,87.518,87.466,0.81198065]
[1770567543733,27.89392419,87.59,87.466,0.81198065]
[1770567543734,10.54931484,87.544,87.466,0.81198065]
[1770567543934,8.66208759,87.543,87.466,0.81198065]
[1770567544141,8.66208759,87.542,87.483,0.81198065]
[1770567544440,8.66208759,87.541,87.483,0.81198065]
[1770567544637,8.66208759,87.54,87.483,0.81198065]
[1770567544940,3.88967307,87.55,87.483,0.81198065]
[1770567545137,8.6575324,87.549,87.483,0.81198065]
[1770567545342,3.88967307,87.547,87.483,0.81198065]
[1770567545534,3.88967307,87.545,87.491,0.68266087]
[1770567545739,3.88967307,87.543,87.491,0.68266087]
[1770567546738,3.88967307,87.543,87.492,0.76220717]
[1770567548136,3.88967307,87.543,87.494,10.2943]
[1770567548631,3.88967307,87.543,87.494,11.05650717]
[1770567548839,3.88967307,87.575,87.498,0.80049131]
[1770567549031,3.88967307,87.573,87.498,0.80049131]
[1770567549228,3.88967307,87.571,87.498,0.80049131]
[1770567549837,3.88967307,87.571,87.511,0.80049131]
[1770567550627,3.88967307,87.571,87.513,0.80049131]
[1770567551738,3.88967307,87.569,87.503,1.1231694]
[1770567554634,3.88967307,87.569,87.509,1.00831569]
[1770567555240,3.88967307,87.569,87.49,0.96038437]
[1770567555647,21.15496676,87.616,87.423,20.6054]
[1770567555648,3.83719593,87.567,87.477,0.96038437]
[1770567555947,10.54931484,87.581,87.477,0.96038437]
[1770567555948,3.83719593,87.565,87.477,0.96038437]
[1770567556145,3.83719593,87.563,87.477,0.96038437]
[1770567556348,3.83719593,87.561,87.477,0.96038437]
[1770567556554,3.83719593,87.559,87.477,0.96038437]
[1770567556850,3.83719593,87.559,87.436,34.38]
[1770567556851,3.83719593,87.557,87.44,1.03572393]
[1770567557038,3.83719593,87.555,87.44,1.03572393]
[1770567557235,3.83719593,87.553,87.476,1.03572393]
[1770567557439,3.83719593,87.551,87.476,1.03572393]
[1770567557947,27.89392419,87.624,87.441,45.82]
[1770567557948,3.83719593,87.549,87.48,1.03572393]
[1770567558443,3.83719593,87.547,87.468,10.2974]
[1770567558747,3.83719593,87.545,87.468,10.2974]
[1770567558941,3.83719593,87.543,87.468,10.2974]
[1770567559143,3.83719593,87.541,87.468,10.2974]
[1770567559342,3.83719593,87.539,87.468,10.2974]
[1770567559543,3.83719593,87.539,87.476,1.19212106]
[1770567560746,3.83719593,87.539,87.479,1.11427729]
[1770567561750,3.83719593,87.539,87.487,1.11427729]
[1770567563439,3.83719593,87.539,87.49,10.2948]
[1770567564039,3.83719593,87.579,87.5,1.07263717]
[1770567564241,3.83719593,87.577,87.5,1.07263717]
[1770567564441,3.83719593,87.575,87.5,1.07263717]
[1770567564641,3.83719593,87.573,87.5,1.07263717]
[1770567564837,3.83719593,87.571,87.5,1.07263717]
[1770567565042,3.83719593,87.569,87.5,1.07263717]
[1770567565841,3.83719593,87.569,87.503,11.39833108]
[1770567566245,3.83719593,87.569,87.507,1.10503108]
[1770567567742,3.83719593,87.569,87.509,10.2925]
[1770567568144,3.83719593,87.569,87.51,1.13018235]
[1770567569450,3.83719593,87.569,87.509,10.2925]
[1770567569451,3.83719593,87.569,87.512,1.10020328]
[1770567570249,3.83719593,87.569,87.522,10.291]
[1770567573157,3.83719593,87.569,87.532,10.2898]
[1770567573353,3.83719593,87.585,87.533,1.10988723]
[1770567573756,3.83719593,87.633,87.545,1.10988723]
[1770567574054,3.83719593,87.631,87.545,1.10988723]
[1770567574254,3.83719593,87.629,87.545,1.10988723]
[1770567574458,3.83719593,87.627,87.545,1.10988723]
[1770567574650,3.83719593,87.625,87.545,1.10988723]
[1770567574847,3.83719593,87.623,87.545,11.39828723]
[1770567575047,3.83719593,87.621,87.545,11.39828723]
[1770567575248,3.83719593,87.619,87.545,10.2884]
[1770567575443,3.83719593,87.617,87.545,10.2884]
[1770567575650,3.83719593,87.615,87.545,10.2884]
[1770567575855,3.83719593,87.613,87.545,10.2884]
[1770567576043,3.83719593,87.611,87.545,10.2884]
[1770567577256,3.83719593,87.609,87.518,1.09181069]
[1770567577557,3.83719593,87.607,87.518,1.09181069]
[1770567577750,3.83719593,87.605,87.518,1.09181069]
[1770567577951,3.83719593,87.605,87.547,10.2881]
[1770567578143,3.83719593,87.605,87.533,1.09181069]
[1770567578144,3.83719593,87.603,87.546,1.09181069]
[1770567578956,3.83719593,87.618,87.559,1.06125969]
[1770567579550,3.83719593,87.618,87.567,10.2857]
[1770567580961,3.83719593,87.618,87.567,11.37711352]
[1770567581161,3.83719593,87.618,87.575,10.2848]
[1770567581361,3.83719593,87.618,87.568,1.09141352]
[1770567581762,3.83719593,87.618,87.57,10.2854]
[1770567582661,3.83719593,87.618,87.56,10.2866]
[1770567583050,3.83719593,87.618,87.553,1.09141352]
[1770567583250,3.83719593,87.616,87.528,1.09501047]
[1770567583455,3.83719593,87.614,87.528,1.09501047]
[1770567583656,3.83719593,87.612,87.528,1.09501047]
[1770567583856,3.83719593,87.61,87.531,10.2899]
[1770567584060,10.54931484,87.627,87.531,10.2899]
[1770567584061,3.83719593,87.608,87.531,10.2899]
[1770567584250,3.83719593,87.606,87.531,10.2899]
[1770567584456,3.83719593,87.604,87.531,10.2899]
[1770567584655,3.83719593,87.602,87.531,10.2899]
[1770567584859,3.76166281,87.6,87.531,10.2899]
[1770567585057,3.76166281,87.598,87.531,10.2899]
[1770567585257,3.76166281,87.596,87.531,10.2899]
[1770567585463,3.76166281,87.594,87.531,10.2899]
[1770567585659,3.76166281,87.592,87.531,10.2899]
[1770567585864,3.76166281,87.59,87.543,10.2886]
[1770567586563,3.76166281,87.59,87.552,10.2875]
[1770567588757,3.76166281,87.59,87.541,10.2889]
[1770567588953,3.76166281,87.588,87.502,1.08316379]
[1770567589156,3.76166281,87.586,87.502,1.08316379]
[1770567589364,3.76166281,87.584,87.531,10.29]
[1770567589565,3.76166281,87.582,87.518,1.08316379]
[1770567590261,3.76166281,87.58,87.518,1.08316379]
[1770567590858,3.76166281,87.58,87.522,1.06939905]
[1770567592861,3.76166281,87.58,87.526,1.06375935]
[1770567593058,8.61669777,87.579,87.526,1.06375935]
[1770567593255,3.76166281,87.578,87.526,1.06375935]
[1770567593662,3.76166281,87.578,87.515,1.06375935]
[1770567593965,3.76166281,87.576,87.515,1.06375935]
[1770567594559,3.76166281,87.591,87.535,1.06375935]
[1770567595164,3.76166281,87.591,87.538,1.07238872]
[1770567595364,3.76166281,87.616,87.538,1.07238872]
[1770567595563,3.76166281,87.614,87.538,1.07238872]
[1770567595760,3.76166281,87.612,87.549,1.07238872]
[1770567595969,3.76166281,87.61,87.549,1.07238872]
[1770567596166,3.76166281,87.608,87.549,1.07238872]
[1770567596369,3.76166281,87.606,87.549,1.07238872]
[1770567596769,3.76166281,87.606,87.552,1.07238872]
[1770567599866,3.76166281,87.606,87.536,1.0747375]
[1770567600064,3.76166281,87.604,87.536,10.2894]
[1770567600264,3.76166281,87.602,87.536,10.2894]
[1770567600569,3.76166281,87.6,87.536,10.2894]
[1770567600872,3.76166281,87.598,87.536,10.2894]
[1770567601073,3.76166281,87.596,87.536,10.2894]
[1770567601366,3.76166281,87.594,87.536,10.2894]
[1770567601569,3.76166281,87.594,87.539,1.07523544]
[1770567602770,3.76166281,87.594,87.546,1.08994278]
[1770567603672,3.76166281,87.621,87.557,1.08994278]
[1770567603978,3.76166281,87.619,87.557,1.08994278]
[1770567604168,3.76166281,87.617,87.557,1.08994278]
[1770567604368,3.76166281,87.615,87.557,1.08994278]
[1770567604569,12.36582228,87.614,87.557,1.08994278]
[1770567604770,3.76166281,87.614,87.568,10.2857]
[1770567605170,3.76166281,87.612,87.568,10.2857]
[1770567605570,3.76166281,87.612,87.569,1.0718794]
[1770567606066,3.76166281,87.632,87.571,1.0718794]
[1770567606262,3.76166281,87.63,87.571,1.0718794]
[1770567607164,3.76166281,87.657,87.586,1.03795985]
[1770567607474,3.76166281,87.655,87.586,1.03795985]
[1770567607671,3.76166281,87.653,87.586,1.03795985]
[1770567607974,3.76166281,87.651,87.586,1.03795985]
[1770567608169,3.76166281,87.649,87.586,1.03795985]
[1770567609075,8.61042375,87.648,87.586,1.03795985]
[1770567609273,3.76166281,87.647,87.586,1.03795985]
[1770567609468,3.76166281,87.647,87.57,1.05502425]
[1770567609678,3.76166281,87.645,87.57,1.05502425]
[1770567609968,3.76166281,87.643,87.605,10.2813]
[1770567612368,3.76166281,87.643,87.541,228.24]
[1770567612369,3.76166281,87.675,87.612,1.07404861]
[1770567612671,3.76166281,87.673,87.612,1.07404861]
[1770567613668,3.76166281,87.673,87.628,10.2786]
[1770567613867,3.76166281,87.673,87.629,1.06634421]
[1770567615075,3.76166281,87.673,87.632,10.2781]
[1770567619986,3.76166281,87.673,87.632,11.37969697]
[1770567620984,3.75279185,87.718,87.638,1.11300879]
[1770567621484,3.75279185,87.718,87.667,1.11300879]
[1770567621980,3.75279185,87.718,87.633,1.11300879]
[1770567622288,3.75279185,87.716,87.633,1.11300879]
[1770567622685,3.75279185,87.716,87.647,10.2764]
[1770567623387,3.75279185,87.716,87.654,10.2756]
[1770567623687,3.75279185,87.716,87.604,20.5628]
[1770567623688,3.75279185,87.716,87.655,1.03726882]
[1770567623988,3.75279185,87.716,87.677,10.2729]
[1770567624380,3.75279185,87.748,87.678,1.03726882]
[1770567624781,3.75279185,87.748,87.682,1.03726882]
[1770567625181,3.75279185,87.748,87.683,10.2722]
[1770567625793,3.75279185,87.748,87.682,1.03726882]
[1770567626780,3.75279185,87.748,87.684,1.0396982]
[1770567627683,3.75279185,87.748,87.694,10.2708]
[1770567628401,3.75279185,87.748,87.68,1.0396982]
[1770567629198,3.75279185,87.748,87.691,10.2712]
[1770567629392,3.75279185,87.748,87.68,1.0396982]
[1770567631695,3.75279185,87.748,87.692,10.2711]
[1770567632095,3.75279185,87.748,87.692,11.2829824]
[1770567632296,3.75279185,87.748,87.693,1.0118824]
[1770567633199,3.75279185,87.748,87.701,1.0362049]
[1770567633600,3.75279185,87.748,87.692,10.2711]
[1770567635194,3.75279185,87.748,87.673,1.0267475]
[1770567635590,3.75279185,87.748,87.636,34.38]
[1770567635591,3.75279185,87.748,87.677,1.0267475]
[1770567636392,3.75279185,87.748,87.68,11.2992475]
[1770567637992,3.75279185,87.748,87.68,10.2725]
[1770567638400,3.75279185,87.748,87.67,10.2737]
[1770567638701,3.75279185,87.748,87.665,0.98975863]
[1770567639794,3.75279185,87.748,87.679,10.2726]
[1770567642800,3.75279185,87.745,87.659,10.2749]
[1770567643099,3.75279185,87.745,87.651,0.96860449]
[1770567643794,3.75279185,87.738,87.668,10.2739]
[1770567644296,3.75279185,87.738,87.651,0.96860449]
[1770567645698,3.93732686,87.723,87.646,10.2765]
[1770567646803,0.52926537,87.751,87.646,10.2765]
[1770567646804,3.93732686,87.718,87.646,10.2765]
[1770567647100,3.93732686,87.716,87.646,10.2765]
[1770567647297,3.93732686,87.714,87.646,10.2765]
[1770567647604,3.93732686,87.712,87.646,10.2765]
[1770567648193,8.57496987,87.711,87.646,10.2765]
[1770567648397,3.93732686,87.709,87.646,10.2765]
[1770567648700,3.93732686,87.707,87.646,10.2765]
[1770567649307,3.93732686,87.705,87.646,10.2765]
[1770567649506,3.93732686,87.703,87.646,10.2765]
[1770567650310,3.93732686,87.701,87.646,10.2765]
[1770567651203,3.93732686,87.699,87.646,10.2765]
[1770567652210,3.93732686,87.697,87.646,10.2765]
[1770567652612,3.93732686,87.697,87.637,1.0599663]
[1770567653310,3.93732686,87.697,87.606,34.38]
[1770567653311,3.93732686,87.695,87.64,1.04401949]
[1770567653699,13.96672002,87.728,87.64,1.04401949]
[1770567653700,10.47469758,87.717,87.64,1.04401949]
[1770567653906,3.93732686,87.722,87.64,1.04401949]
[1770567654108,3.93732686,87.722,87.605,34.38]
[1770567654109,3.93732686,87.72,87.651,1.04401949]
[1770567654313,3.93732686,87.718,87.651,1.04401949]
[1770567654609,8.60337657,87.717,87.651,1.04401949]
[1770567654804,8.60337657,87.716,87.651,1.04401949]
[1770567655005,3.93732686,87.718,87.664,1.00253833]
[1770567655311,3.93732686,87.716,87.664,1.00253833]
[1770567655616,3.93732686,87.714,87.664,1.00253833]
[1770567655913,3.93732686,87.712,87.664,1.00253833]
[1770567656311,8.61844474,87.711,87.664,1.00253833]
[1770567656504,3.93732686,87.712,87.664,1.00253833]
[1770567657116,3.93732686,87.731,87.664,1.00253833]
[1770567657312,3.93732686,87.729,87.664,1.00253833]
[1770567657504,10.47469758,87.738,87.664,1.00253833]
[1770567657505,3.93732686,87.727,87.664,1.00253833]
[1770567657705,3.93732686,87.725,87.667,1.02464139]
[1770567657906,3.93732686,87.723,87.667,1.02464139]
[1770567658107,10.2644,87.75,87.667,1.02464139]
[1770567658108,3.93732686,87.721,87.667,1.02464139]
[1770567658308,8.62378756,87.72,87.667,1.02464139]
[1770567658512,3.93732686,87.736,87.676,1.02464139]
[1770567658707,3.93732686,87.734,87.676,1.02464139]
[1770567658902,3.93732686,87.732,87.676,1.02464139]
[1770567659105,3.93732686,87.73,87.676,1.02464139]
[1770567659307,3.93732686,87.728,87.676,1.02464139]
[1770567659513,3.93732686,87.726,87.676,1.02464139]
[1770567659811,3.93732686,87.724,87.677,1.00974579]
[1770567660015,3.93732686,87.722,87.651,1.00974579]
[1770567660314,3.93732686,87.72,87.651,1.00974579]
[1770567660516,3.93732686,87.718,87.651,1.00974579]
[1770567660715,10.47469758,87.729,87.651,1.00974579]
[1770567660716,3.93732686,87.716,87.651,1.00974579]
[1770567661014,3.93732686,87.716,87.601,228.0]
[1770567661015,3.93732686,87.712,87.603,1.01328228]
[1770567661208,3.93732686,87.71,87.603,1.01328228]
[1770567661404,3.93732686,87.708,87.639,1.01328228]
[1770567661607,3.93732686,87.706,87.639,1.01328228]
[1770567661813,8.62573374,87.705,87.639,1.01328228]
[1770567662016,8.62573374,87.704,87.652,1.01328228]
[1770567662319,8.62573374,87.703,87.652,1.01328228]
[1770567662618,3.93732686,87.727,87.655,1.01328228]
[1770567662814,3.93732686,87.725,87.655,1.01328228]
[1770567663117,3.93732686,87.723,87.66,1.01633005]
[1770567663416,10.47469758,87.729,87.66,1.01633005]
[1770567663417,3.93732686,87.721,87.661,1.01633005]
[1770567663619,8.63170765,87.72,87.661,1.01633005]
[1770567663914,8.63170765,87.719,87.661,1.01633005]
[1770567664111,8.63170765,87.718,87.662,1.01633005]
[1770567664317,8.63170765,87.717,87.662,1.01633005]
[1770567664515,8.63170765,87.716,87.662,1.01633005]
[1770567664716,3.93732686,87.721,87.662,1.01633005]
[1770567664918,8.63491746,87.72,87.662,1.01633005]
[1770567665216,3.93732686,87.721,87.668,1.00315415]
[1770567665417,8.63682084,87.72,87.668,1.00315415]
[1770567665611,3.93732686,87.721,87.668,1.00315415]
[1770567665808,3.93732686,87.719,87.668,1.00315415]
[1770567666019,3.93732686,87.717,87.668,1.00315415]
[1770567666320,3.93732686,87.715,87.668,1.00315415]
[1770567666613,3.93732686,87.715,87.675,10.2731]
[1770567666822,3.93732686,87.715,87.668,1.00315415]
[1770567666823,3.93732686,87.735,87.668,1.00315415]
[1770567667013,8.63624299,87.734,87.668,1.00315415]
[1770567667316,8.63624299,87.733,87.668,1.00315415]
[1770567667517,8.63624299,87.732,87.668,1.00315415]
[1770567667718,3.93732686,87.735,87.682,0.93522251]
[1770567667905,8.63665162,87.734,87.682,0.93522251]
[1770567668111,8.63665162,87.733,87.682,0.93522251]
[1770567668313,3.93732686,87.735,87.682,0.93522251]
[1770567668608,20.94939517,87.778,87.631,34.38]
[1770567668609,3.93732686,87.733,87.667,0.93522251]
[1770567668916,3.93732686,87.731,87.667,0.93522251]
[1770567669117,3.93732686,87.729,87.667,0.93522251]
[1770567669317,3.93732686,87.727,87.667,0.93522251]
[1770567669514,3.93732686,87.725,87.667,0.93522251]
[1770567669712,3.93732686,87.723,87.667,0.93522251]
[1770567669916,3.93732686,87.721,87.667,0.93522251]
[1770567670115,3.93732686,87.719,87.651,0.91960985]
[1770567670318,3.93732686,87.717,87.655,10.2754]
[1770567670516,3.93732686,87.715,87.655,10.2754]
[1770567670819,3.93732686,87.713,87.655,10.2754]
[1770567671018,3.93732686,87.711,87.655,10.2754]
[1770567671220,10.47469758,87.723,87.655,10.2754]
[1770567671221,3.93732686,87.709,87.655,10.2754]
[1770567671420,3.93732686,87.707,87.655,10.2754]
[1770567671621,3.93732686,87.705,87.655,10.2754]
[1770567671918,3.93732686,87.704,87.659,11.23155809]
[1770567672321,3.93732686,87.727,87.66,0.95655809]
[1770567672513,3.93732686,87.725,87.665,0.95655809]
[1770567672714,3.93732686,87.723,87.665,0.95655809]
[1770567672915,3.93732686,87.721,87.665,0.95655809]
[1770567673116,3.93732686,87.719,87.652,10.2758]
[1770567673318,3.93732686,87.717,87.652,10.2758]
[1770567673512,3.93732686,87.715,87.652,10.2758]
[1770567673717,3.93732686,87.713,87.652,10.2758]
[1770567673918,3.93732686,87.711,87.652,10.2758]
[1770567674218,3.93732686,87.709,87.652,10.2758]
[1770567674415,3.93732686,87.707,87.652,10.2758]
[1770567674621,3.68999941,87.705,87.652,10.2758]
[1770567674816,3.68999941,87.703,87.652,10.2758]
[1770567675025,3.71661662,87.701,87.619,0.97218984]
[1770567675215,3.71661662,87.699,87.619,0.97218984]
[1770567675412,3.71661662,87.697,87.619,0.97218984]
[1770567675616,3.71661662,87.695,87.633,0.97218984]
[1770567675921,3.71661662,87.694,87.633,0.97218984]
[1770567676325,3.71661662,87.717,87.648,0.97218132]
[1770567676621,3.71661662,87.715,87.648,0.97218132]
[1770567676819,3.71661662,87.713,87.648,0.97218132]
[1770567677022,3.71661662,87.711,87.648,0.97218132]
[1770567677222,3.71661662,87.709,87.648,0.97218132]
[1770567677422,3.71661662,87.707,87.648,0.97218132]
[1770567677627,3.71661662,87.705,87.648,0.97218132]
[1770567677822,10.47469758,87.721,87.649,10.2762]
[1770567677823,3.71661662,87.703,87.649,10.2762]
[1770567678021,10.47469758,87.721,87.649,10.2762]
[1770567678022,12.35652872,87.702,87.649,10.2762]
[1770567678222,12.35652872,87.701,87.649,10.2762]
[1770567678422,12.35652872,87.7,87.649,10.2762]
[1770567678631,3.71661662,87.7,87.649,10.2762]
[1770567679416,3.71661662,87.7,87.65,0.93601373]
[1770567679613,3.71661662,87.7,87.654,0.93601373]
[1770567681029,3.71661662,87.698,87.654,0.93601373]
[1770567684433,3.71661662,87.698,87.653,10.2757]
[1770567684724,3.71661662,87.696,87.653,10.2757]
[1770567684929,8.64903057,87.695,87.653,10.2757]
[1770567685128,8.64903057,87.694,87.653,10.2757]
[1770567685330,3.71661662,87.696,87.653,10.2757]
[1770567685527,3.71661662,87.694,87.653,10.2757]
[1770567686325,8.65090702,87.693,87.653,10.2757]
[1770567686532,3.71661662,87.694,87.653,10.2757]
[1770567686732,3.71661662,87.692,87.653,10.2757]
[1770567687234,3.71661662,87.692,87.654,0.95064026]
[1770567689930,3.71661662,87.692,87.638,0.95697077]
[1770567690230,3.71661662,87.69,87.638,0.95697077]
[1770567690929,3.71661662,87.69,87.641,10.2771]
[1770567691129,3.71661662,87.688,87.602,0.95374435]
[1770567691322,3.71661662,87.686,87.602,0.95374435]
[1770567691528,10.47469758,87.697,87.602,0.95374435]
[1770567691529,3.71661662,87.684,87.602,0.95374435]
[1770567691724,3.71661662,87.682,87.602,0.95374435]
[1770567691925,3.71661662,87.68,87.602,0.95374435]
[1770567692127,3.71661662,87.678,87.602,0.95374435]
[1770567692328,3.71661662,87.676,87.631,0.95374435]
[1770567693941,3.71661662,87.676,87.635,10.2778]
[1770567698242,3.71661662,87.676,87.631,0.95374435]